fUST/lending_fUST_20260531
["ID","MTS","AMOUNT","RATE_DAILY","PERIOD"]
[423499657,1780170639000,-4847.58374307,6.849e-05,2]
[423499638,1780170639000,-2705.70558012,6.849e-05,2]
[423499627,1780170639000,-1836.0,6.844e-05,2]
[423499630,1780170639000,-743.0,6.844e-05,2]
[423499632,1780170639000,-185.0,6.844e-05,2]
[423499628,1780170639000,-454.075,6.844e-05,2]
[423499645,1780170639000,-496.96633104,6.849e-05,2]
[423499634,1780170639000,-668.71772022,6.849e-05,2]
[423499647,1780170639000,-275.81631373,6.849e-05,2]
[423499649,1780170639000,-9501.26413643,6.849e-05,2]
[423499651,1780170639000,-8192.4165258,6.849e-05,2]
[423499653,1780170639000,-6980.52059003,6.849e-05,2]
[423499655,1780170639000,-5865.57632912,6.849e-05,2]
[423499636,1780170639000,-3533.98279853,6.849e-05,2]
[423499712,1780170639000,-800.0,7.144e-05,2]
[423499829,1780170639000,-500.0,8.219e-05,2]
[423499720,1780170639000,-152.0,7.212e-05,30]
[423499774,1780170639000,-500.0,8.219e-05,2]
[423499787,1780170639000,-500.0,8.219e-05,2]
[423499780,1780170639000,-500.0,8.219e-05,2]
[423499791,1780170639000,-500.0,8.219e-05,2]
[423499793,1780170639000,-189.85731787,8.219e-05,2]
[423499808,1780170639000,-500.0,8.219e-05,2]
[423499810,1780170639000,-500.0,8.219e-05,2]
[423499796,1780170639000,-500.0,8.219e-05,2]
[423499815,1780170639000,-589.51,8.219e-05,2]
[423499706,1780170639000,-800.0,7.105e-05,2]
[423499799,1780170639000,-500.0,8.219e-05,2]
[423499802,1780170639000,-500.0,8.219e-05,2]
[423499805,1780170639000,-500.0,8.219e-05,2]
[423499819,1780170639000,-500.0,8.219e-05,2]
[423499824,1780170639000,-500.0,8.219e-05,2]
[423499836,1780170639000,-500.0,8.219e-05,2]
[423499822,1780170639000,-500.0,8.219e-05,2]
[423499817,1780170639000,-500.0,8.219e-05,2]
[423499832,1780170639000,-253.77246949,8.219e-05,2]
[423499826,1780170639000,-500.0,8.219e-05,2]
[423499834,1780170639000,-500.0,8.219e-05,2]
[423499838,1780170639000,-500.0,8.219e-05,2]
[423499841,1780170639000,-500.55329386,8.219e-05,2]
[423499772,1780170639000,-500.0,8.219e-05,2]
[423499770,1780170639000,-500.0,8.219e-05,2]
[423499813,1780170639000,-500.0,8.219e-05,2]
[423499760,1780170639000,-500.0,8.219e-05,2]
[423499768,1780170639000,-830.21,8.219e-05,2]
[423499717,1780170639000,-800.0,7.193e-05,2]
[423499716,1780170639000,-152.0,7.193e-05,30]
[423499722,1780170639000,-152.0,7.226e-05,30]
[423499724,1780170639000,-152.0,7.238e-05,30]
[423499732,1780170639000,-800.0,7.405e-05,2]
[423499740,1780170639000,-452.0,7.636e-05,2]
[423499736,1780170639000,-1965.41,7.441e-05,2]
[423499738,1780170639000,-250.0,7.595e-05,2]
[423499734,1780170639000,-600.0,7.409e-05,2]
[423499726,1780170639000,-800.0,7.319e-05,2]
[423499728,1780170639000,-4749.83355882,7.35e-05,2]
[423499730,1780170639000,-500.0,7.389e-05,2]
[423499744,1780170639000,-558.02432004,7.748e-05,2]
[423499742,1780170639000,-600.0,7.649e-05,2]
[423499754,1780170639000,-692.0837,8.219e-05,2]
[423499766,1780170639000,-500.0,8.219e-05,2]
[423499764,1780170639000,-500.0,8.219e-05,2]
[423499758,1780170639000,-500.0,8.219e-05,2]
[423499762,1780170639000,-500.0,8.219e-05,2]
[423499752,1780170639000,-5000.0,8e-05,2]
[423499750,1780170639000,-5000.0,8e-05,2]
[423499748,1780170639000,-5000.0,8e-05,2]
[423499746,1780170639000,-277.62,8e-05,2]
[423499756,1780170639000,-500.0,8.219e-05,2]
[423499923,1780170640000,-500.0,8.219e-05,2]
[423499909,1780170640000,-500.45014818,8.219e-05,2]
[423499906,1780170640000,-500.0,8.219e-05,2]
[423499911,1780170640000,-500.0,8.219e-05,2]
[423499913,1780170640000,-500.0,8.219e-05,2]
[423499902,1780170640000,-500.0,8.219e-05,2]
[423499916,1780170640000,-500.0,8.219e-05,2]
[423499918,1780170640000,-1152.16,8.219e-05,2]
[423499921,1780170640000,-500.0,8.219e-05,2]
[423499934,1780170640000,-501.2132747,8.219e-05,2]
[423499939,1780170640000,-500.0,8.219e-05,2]
[423499904,1780170640000,-500.0,8.219e-05,2]
[423499941,1780170640000,-500.0,8.219e-05,2]
[423499925,1780170640000,-500.0,8.219e-05,2]
[423499930,1780170640000,-500.0,8.219e-05,2]
[423499928,1780170640000,-500.0,8.219e-05,2]
[423499932,1780170640000,-500.0,8.219e-05,2]
[423499943,1780170640000,-500.0,8.219e-05,2]
[423499948,1780170640000,-500.0,8.219e-05,2]
[423499950,1780170640000,-500.0,8.219e-05,2]
[423499952,1780170640000,-500.0,8.219e-05,2]
[423499958,1780170640000,-500.0,8.219e-05,2]
[423499960,1780170640000,-624.57,8.219e-05,2]
[423499936,1780170640000,-500.0,8.219e-05,2]
[423499899,1780170640000,-500.0,8.219e-05,2]
[423499955,1780170640000,-500.0,8.219e-05,2]
[423499897,1780170640000,-500.0,8.219e-05,2]
[423499849,1780170640000,-500.0,8.219e-05,2]
[423499845,1780170640000,-283.34715702,8.219e-05,2]
[423499852,1780170640000,-500.0,8.219e-05,2]
[423499843,1780170640000,-500.59604064,8.219e-05,2]
[423499856,1780170640000,-500.45758487,8.219e-05,2]
[423499847,1780170640000,-500.70052025,8.219e-05,2]
[423499854,1780170640000,-500.0,8.219e-05,2]
[423499862,1780170640000,-500.0,8.219e-05,2]
[423499860,1780170640000,-500.0,8.219e-05,2]
[423499858,1780170640000,-500.0,8.219e-05,2]
[423499865,1780170640000,-500.0,8.219e-05,2]
[423499888,1780170640000,-534.59,8.219e-05,2]
[423499867,1780170640000,-500.81549763,8.219e-05,2]
[423499878,1780170640000,-151.08546019,8.219e-05,2]
[423499880,1780170640000,-500.39639111,8.219e-05,2]
[423499873,1780170640000,-249.64966195,8.219e-05,2]
[423499871,1780170640000,-500.0,8.219e-05,2]
[423499875,1780170640000,-500.0,8.219e-05,2]
[423499884,1780170640000,-500.0,8.219e-05,2]
[423499882,1780170640000,-500.0,8.219e-05,2]
[423499886,1780170640000,-500.0,8.219e-05,2]
[423499890,1780170640000,-500.0,8.219e-05,2]
[423499893,1780170640000,-500.0,8.219e-05,2]
[423499895,1780170640000,-500.0,8.219e-05,2]
[423499869,1780170640000,-466.32848087,8.219e-05,2]
[423499963,1780170640000,-606.46421038,8.219e-05,2]
[423499945,1780170640000,-500.0,8.219e-05,2]
[423499964,1780170640000,-501.72320948,8.219e-05,2]
[423500029,1780170640000,-500.0,8.219e-05,2]
[423500025,1780170640000,-500.0,8.219e-05,2]
[423500035,1780170640000,-930.362598,8.219e-05,2]
[423500031,1780170640000,-500.0,8.219e-05,2]
[423500023,1780170640000,-500.0,8.219e-05,2]
[423500019,1780170640000,-407.68516009,8.219e-05,2]
[423500033,1780170640000,-500.0,8.219e-05,2]
[423500021,1780170640000,-500.76090806,8.219e-05,2]
[423500037,1780170640000,-500.0,8.219e-05,2]
[423500039,1780170640000,-500.0,8.219e-05,2]
[423500046,1780170640000,-286.774213,8.219e-05,2]
[423500027,1780170640000,-500.0,8.219e-05,2]
[423500048,1780170640000,-500.0,8.219e-05,2]
[423500064,1780170640000,-500.0,8.219e-05,2]
[423500050,1780170640000,-500.0,8.219e-05,2]
[423500058,1780170640000,-500.0,8.219e-05,2]
[423500066,1780170640000,-500.0,8.219e-05,2]
[423500042,1780170640000,-500.0,8.219e-05,2]
[423500061,1780170640000,-500.0,8.219e-05,2]
[423500056,1780170640000,-500.0,8.219e-05,2]
[423500052,1780170640000,-500.0,8.219e-05,2]
[423500060,1780170640000,-500.0,8.219e-05,2]
[423500041,1780170640000,-500.0,8.219e-05,2]
[423499966,1780170640000,-500.0,8.219e-05,2]
[423500054,1780170640000,-500.0,8.219e-05,2]
[423500017,1780170640000,-500.0,8.219e-05,2]
[423500044,1780170640000,-500.0,8.219e-05,2]
[423500011,1780170640000,-350.87263607,8.219e-05,2]
[423500013,1780170640000,-500.0,8.219e-05,2]
[423499957,1780170640000,-500.0,8.219e-05,2]
[423499968,1780170640000,-500.0,8.219e-05,2]
[423500067,1780170640000,-500.0,8.219e-05,2]
[423499970,1780170640000,-500.0,8.219e-05,2]
[423499980,1780170640000,-500.0,8.219e-05,2]
[423499981,1780170640000,-192.3731274,8.219e-05,2]
[423499972,1780170640000,-500.0,8.219e-05,2]
[423499978,1780170640000,-500.0,8.219e-05,2]
[423499983,1780170640000,-500.0,8.219e-05,2]
[423499989,1780170640000,-500.0,8.219e-05,2]
[423499976,1780170640000,-500.87575633,8.219e-05,2]
[423499985,1780170640000,-500.0,8.219e-05,2]
[423499974,1780170640000,-500.0,8.219e-05,2]
[423499987,1780170640000,-500.0,8.219e-05,2]
[423500009,1780170640000,-500.0,8.219e-05,2]
[423500007,1780170640000,-500.0,8.219e-05,2]
[423500004,1780170640000,-500.0,8.219e-05,2]
[423500000,1780170640000,-500.0,8.219e-05,2]
[423500002,1780170640000,-500.0,8.219e-05,2]
[423500015,1780170640000,-500.0,8.219e-05,2]
[423499999,1780170640000,-635.82948777,8.219e-05,2]
[423499995,1780170640000,-500.0,8.219e-05,2]
[423499997,1780170640000,-500.0,8.219e-05,2]
[423499991,1780170640000,-1229.33,8.219e-05,2]
[423499993,1780170640000,-500.0,8.219e-05,2]
[423500145,1780170641000,-500.0,8.219e-05,2]
[423500164,1780170641000,-500.0,8.219e-05,2]
[423500143,1780170641000,-500.0,8.219e-05,2]
[423500149,1780170641000,-500.0,8.219e-05,2]
[423500159,1780170641000,-500.0,8.219e-05,2]
[423500153,1780170641000,-500.0,8.219e-05,2]
[423500155,1780170641000,-500.0,8.219e-05,2]
[423500141,1780170641000,-500.0,8.219e-05,2]
[423500151,1780170641000,-501.29167151,8.219e-05,2]
[423500132,1780170641000,-500.31448142,8.219e-05,2]
[423500147,1780170641000,-500.0,8.219e-05,2]
[423500157,1780170641000,-500.0,8.219e-05,2]
[423500161,1780170641000,-502.05069914,8.219e-05,2]
[423500194,1780170641000,-500.93356271,8.219e-05,2]
[423500172,1780170641000,-500.0,8.219e-05,2]
[423500177,1780170641000,-500.0,8.219e-05,2]
[423500168,1780170641000,-500.0,8.219e-05,2]
[423500170,1780170641000,-500.0,8.219e-05,2]
[423500183,1780170641000,-500.0,8.219e-05,2]
[423500174,1780170641000,-274.89988658,8.219e-05,2]
[423500179,1780170641000,-500.0,8.219e-05,2]
[423500181,1780170641000,-500.0,8.219e-05,2]
[423500190,1780170641000,-502.30215868,8.219e-05,2]
[423500188,1780170641000,-267.13504392,8.219e-05,2]
[423500186,1780170641000,-500.8589495,8.219e-05,2]
[423500192,1780170641000,-500.0,8.219e-05,2]
[423500138,1780170641000,-501.51230276,8.219e-05,2]
[423500166,1780170641000,-500.0,8.219e-05,2]
[423500128,1780170641000,-305.63993883,8.219e-05,2]
[423500069,1780170641000,-500.0,8.219e-05,2]
[423500126,1780170641000,-443.42444975,8.219e-05,2]
[423500073,1780170641000,-500.0,8.219e-05,2]
[423500072,1780170641000,-514.75,8.219e-05,2]
[423500196,1780170641000,-501.22262463,8.219e-05,2]
[423500079,1780170641000,-500.0,8.219e-05,2]
[423500081,1780170641000,-500.0,8.219e-05,2]
[423500075,1780170641000,-500.0,8.219e-05,2]
[423500083,1780170641000,-570.68,8.219e-05,2]
[423500077,1780170641000,-358.8060726,8.219e-05,2]
[423500085,1780170641000,-315.17416686,8.219e-05,2]
[423500087,1780170641000,-500.0,8.219e-05,2]
[423500090,1780170641000,-500.48367553,8.219e-05,2]
[423500091,1780170641000,-500.87784273,8.219e-05,2]
[423500094,1780170641000,-500.57355039,8.219e-05,2]
[423500100,1780170641000,-500.0,8.219e-05,2]
[423500098,1780170641000,-500.9090379,8.219e-05,2]
[423500096,1780170641000,-501.34849625,8.219e-05,2]
[423500111,1780170641000,-500.36055106,8.219e-05,2]
[423500102,1780170641000,-500.0,8.219e-05,2]
[423500105,1780170641000,-611.33239356,8.219e-05,2]
[423500107,1780170641000,-500.0,8.219e-05,2]
[423500113,1780170641000,-500.0,8.219e-05,2]
[423500109,1780170641000,-186.47882676,8.219e-05,2]
[423500115,1780170641000,-501.74550227,8.219e-05,2]
[423500117,1780170641000,-500.0,8.219e-05,2]
[423500121,1780170641000,-500.0,8.219e-05,2]
[423500123,1780170641000,-500.0,8.219e-05,2]
[423500134,1780170641000,-501.16528798,8.219e-05,2]
[423500130,1780170641000,-500.0,8.219e-05,2]
[423500198,1780170641000,-500.0,8.219e-05,2]
[423500137,1780170641000,-500.0,8.219e-05,2]
[423500209,1780170641000,-552.96241329,8.219e-05,2]
[423500254,1780170641000,-500.0,8.219e-05,2]
[423500265,1780170641000,-500.4864851,8.219e-05,2]
[423500267,1780170641000,-500.0,8.219e-05,2]
[423500269,1780170641000,-500.0,8.219e-05,2]
[423500273,1780170641000,-721.62,8.219e-05,2]
[423500275,1780170641000,-2246.27,8.219e-05,2]
[423500271,1780170641000,-960.05,8.219e-05,2]
[423500285,1780170641000,-500.0,8.219e-05,2]
[423500281,1780170641000,-500.0,8.219e-05,2]
[423500277,1780170641000,-500.0,8.219e-05,2]
[423500288,1780170641000,-469.552428,8.219e-05,2]
[423500279,1780170641000,-757.46,8.219e-05,2]
[423500283,1780170641000,-1094.18,8.219e-05,2]
[423500286,1780170641000,-500.0,8.219e-05,2]
[423500294,1780170641000,-279.086034,8.219e-05,2]
[423500292,1780170641000,-500.0,8.219e-05,2]
[423500311,1780170641000,-592.0,8.219e-05,2]
[423500301,1780170641000,-1348.04,8.219e-05,2]
[423500312,1780170641000,-17973.7,8.219e-05,2]
[423500296,1780170641000,-500.0,8.219e-05,2]
[423500309,1780170641000,-500.0,8.219e-05,2]
[423500307,1780170641000,-500.0,8.219e-05,2]
[423500298,1780170641000,-1062.25,8.219e-05,2]
[423500303,1780170641000,-340.84916339,8.219e-05,2]
[423500314,1780170641000,-552.66624257,8.219e-05,2]
[423500299,1780170641000,-2257.15,8.219e-05,2]
[423500305,1780170641000,-500.0,8.219e-05,2]
[423500250,1780170641000,-3386.56,8.219e-05,2]
[423500316,1780170641000,-471.97592163,8.219e-05,2]
[423500290,1780170641000,-3366.17,8.219e-05,2]
[423500263,1780170641000,-500.0,8.219e-05,2]
[423500252,1780170641000,-500.0,8.219e-05,2]
[423500207,1780170641000,-500.0,8.219e-05,2]
[423500217,1780170641000,-500.42768074,8.219e-05,2]
[423500203,1780170641000,-500.0,8.219e-05,2]
[423500211,1780170641000,-500.0,8.219e-05,2]
[423500205,1780170641000,-2030.47,8.219e-05,2]
[423500215,1780170641000,-607.56,8.219e-05,2]
[423500221,1780170641000,-500.0,8.219e-05,2]
[423500224,1780170641000,-506.88,8.219e-05,2]
[423500226,1780170641000,-6116.57,8.219e-05,2]
[423500223,1780170641000,-500.37325397,8.219e-05,2]
[423500228,1780170641000,-500.53867313,8.219e-05,2]
[423500238,1780170641000,-500.0,8.219e-05,2]
[423500219,1780170641000,-500.53865918,8.219e-05,2]
[423500213,1780170641000,-500.0,8.219e-05,2]
[423500236,1780170641000,-500.57495586,8.219e-05,2]
[423500232,1780170641000,-1394.68,8.219e-05,2]
[423500262,1780170641000,-890.26,8.219e-05,2]
[423500256,1780170641000,-500.0,8.219e-05,2]
[423500258,1780170641000,-500.61960217,8.219e-05,2]
[423500246,1780170641000,-500.0,8.219e-05,2]
[423500248,1780170641000,-500.0,8.219e-05,2]
[423500201,1780170641000,-500.0,8.219e-05,2]
[423500242,1780170641000,-870.04,8.219e-05,2]
[423500244,1780170641000,-500.39662144,8.219e-05,2]
[423500240,1780170641000,-500.0,8.219e-05,2]
[423500230,1780170641000,-1194.67,8.219e-05,2]
[423500234,1780170641000,-527.45630639,8.219e-05,2]
[423500259,1780170641000,-500.0,8.219e-05,2]
[423500347,1780170642000,-500.0,8.219e-05,2]
[423500353,1780170642000,-500.0,8.219e-05,2]
[423500351,1780170642000,-500.0,8.219e-05,2]
[423500349,1780170642000,-500.0,8.219e-05,2]
[423500355,1780170642000,-524.64849091,8.219e-05,2]
[423500365,1780170642000,-500.0,8.219e-05,2]
[423500361,1780170642000,-312.4688432,8.219e-05,2]
[423500359,1780170642000,-151.5,8.219e-05,2]
[423500367,1780170642000,-500.0,8.219e-05,2]
[423500363,1780170642000,-500.0,8.219e-05,2]
[423500357,1780170642000,-500.0,8.219e-05,2]
[423500341,1780170642000,-550.77,8.219e-05,2]
[423500326,1780170642000,-669.81,8.219e-05,2]
[423500329,1780170642000,-3190.16,8.219e-05,2]
[423500324,1780170642000,-1403.39,8.219e-05,2]
[423500331,1780170642000,-530.74519802,8.219e-05,2]
[423500343,1780170642000,-500.0,8.219e-05,2]
[423500374,1780170642000,-1080.71,8.219e-05,2]
[423500340,1780170642000,-500.79750258,8.219e-05,2]
[423500333,1780170642000,-525.21,8.219e-05,2]
[423500337,1780170642000,-578.42,8.219e-05,2]
[423500322,1780170642000,-1012.94,8.219e-05,2]
[423500335,1780170642000,-1016.94,8.219e-05,2]
[423500318,1780170642000,-500.0,8.219e-05,2]
[423500320,1780170642000,-500.0,8.219e-05,2]
[423500345,1780170642000,-500.0,8.219e-05,2]
[423500327,1780170642000,-500.0,8.219e-05,2]
[423500369,1780170642000,-500.0,8.219e-05,2]
[423500380,1780170642000,-521.73543676,8.219e-05,2]
[423500371,1780170642000,-500.98305589,8.219e-05,2]
[423500429,1780170642000,-500.0,8.493e-05,2]
[423500413,1780170642000,-500.0,8.493e-05,2]
[423500425,1780170642000,-500.0,8.493e-05,2]
[423500427,1780170642000,-589.51,8.493e-05,2]
[423500410,1780170642000,-500.0,8.493e-05,2]
[423500408,1780170642000,-500.0,8.493e-05,2]
[423500417,1780170642000,-552.61995317,8.493e-05,2]
[423500419,1780170642000,-500.0,8.493e-05,2]
[423500423,1780170642000,-500.0,8.493e-05,2]
[423500415,1780170642000,-500.0,8.493e-05,2]
[423500406,1780170642000,-500.0,8.493e-05,2]
[423500404,1780170642000,-830.21,8.493e-05,2]
[423500421,1780170642000,-562.44544963,8.493e-05,2]
[423500402,1780170642000,-500.0,8.493e-05,2]
[423500378,1780170642000,-501.55429019,8.219e-05,2]
[423500398,1780170642000,-500.0,8.493e-05,2]
[423500376,1780170642000,-556.31367779,8.219e-05,2]
[423500382,1780170642000,-1931.41,8.219e-05,2]
[423500384,1780170642000,-500.0,8.219e-05,2]
[423500390,1780170642000,-153.188546,8.219e-05,2]
[423500392,1780170642000,-20571.001391,8.3e-05,2]
[423500394,1780170642000,-720.0,8.414e-05,2]
[423500388,1780170642000,-151.0,8.219e-05,2]
[423500396,1780170642000,-692.0837,8.493e-05,2]
[423500400,1780170642000,-500.0,8.493e-05,2]
[423500386,1780170642000,-151.0,8.219e-05,2]
[423500641,1780170643000,-501.89124087,8.493e-05,2]
[423500653,1780170643000,-2030.47,8.493e-05,2]
[423500658,1780170643000,-6116.57,8.493e-05,2]
[423500642,1780170643000,-500.0,8.493e-05,2]
[423500637,1780170643000,-501.86852882,8.493e-05,2]
[423500631,1780170643000,-500.0,8.493e-05,2]
[423500633,1780170643000,-570.68,8.493e-05,2]
[423500635,1780170643000,-500.0,8.493e-05,2]
[423500638,1780170643000,-503.2857313,8.493e-05,2]
[423500640,1780170643000,-500.0,8.493e-05,2]
[423500655,1780170643000,-500.0,8.493e-05,2]
[423500636,1780170643000,-632.55482152,8.493e-05,2]
[423500649,1780170643000,-499.838,8.493e-05,2]
[423500667,1780170643000,-500.0,8.493e-05,2]
[423500651,1780170643000,-502.66285442,8.493e-05,2]
[423500652,1780170643000,-500.0,8.493e-05,2]
[423500643,1780170643000,-502.01584976,8.493e-05,2]
[423500645,1780170643000,-637.6,8.493e-05,2]
[423500647,1780170643000,-500.0,8.493e-05,2]
[423500646,1780170643000,-501.81024904,8.493e-05,2]
[423500644,1780170643000,-500.0,8.493e-05,2]
[423500650,1780170643000,-500.0,8.493e-05,2]
[423500657,1780170643000,-506.88,8.493e-05,2]
[423500664,1780170643000,-500.0,8.493e-05,2]
[423500661,1780170643000,-499.47667092,8.493e-05,2]
[423500639,1780170643000,-500.0,8.493e-05,2]
[423500656,1780170643000,-607.56,8.493e-05,2]
[423500648,1780170643000,-500.0,8.493e-05,2]
[423500629,1780170643000,-500.0,8.493e-05,2]
[423500601,1780170643000,-500.0,8.493e-05,2]
[423500625,1780170643000,-306.54,8.493e-05,2]
[423500566,1780170643000,-500.45,8.493e-05,2]
[423500569,1780170643000,-1229.33,8.493e-05,2]
[423500568,1780170643000,-500.0,8.493e-05,2]
[423500573,1780170643000,-500.0,8.493e-05,2]
[423500590,1780170643000,-500.0,8.493e-05,2]
[423500571,1780170643000,-500.0,8.493e-05,2]
[423500583,1780170643000,-500.56642321,8.493e-05,2]
[423500579,1780170643000,-339.40159126,8.493e-05,2]
[423500588,1780170643000,-292.27867845,8.493e-05,2]
[423500577,1780170643000,-487.08863959,8.493e-05,2]
[423500581,1780170643000,-500.0,8.493e-05,2]
[423500575,1780170643000,-500.0,8.493e-05,2]
[423500592,1780170643000,-500.0,8.493e-05,2]
[423500627,1780170643000,-500.0,8.493e-05,2]
[423500586,1780170643000,-500.0,8.493e-05,2]
[423500594,1780170643000,-502.04822537,8.493e-05,2]
[423500599,1780170643000,-930.362598,8.493e-05,2]
[423500607,1780170643000,-500.0,8.493e-05,2]
[423500605,1780170643000,-500.0,8.493e-05,2]
[423500603,1780170643000,-186.13497545,8.493e-05,2]
[423500609,1780170643000,-286.774213,8.493e-05,2]
[423500611,1780170643000,-500.0,8.493e-05,2]
[423500613,1780170643000,-500.0,8.493e-05,2]
[423500615,1780170643000,-351.52,8.493e-05,2]
[423500617,1780170643000,-500.0,8.493e-05,2]
[423500621,1780170643000,-500.0,8.493e-05,2]
[423500619,1780170643000,-500.0,8.493e-05,2]
[423500623,1780170643000,-500.0,8.493e-05,2]
[423500597,1780170643000,-500.0,8.493e-05,2]
[423500666,1780170643000,-3386.56,8.493e-05,2]
[423500654,1780170643000,-500.0,8.493e-05,2]
[423500659,1780170643000,-1194.67,8.493e-05,2]
[423500709,1780170643000,-830.21,8.767e-05,2]
[423500708,1780170643000,-500.0,8.767e-05,2]
[423500697,1780170643000,-578.42,8.493e-05,2]
[423500700,1780170643000,-500.0,8.493e-05,2]
[423500704,1780170643000,-1931.41,8.493e-05,2]
[423500701,1780170643000,-500.0,8.493e-05,2]
[423500699,1780170643000,-500.0,8.493e-05,2]
[423500703,1780170643000,-1080.71,8.493e-05,2]
[423500705,1780170643000,-500.0,8.493e-05,2]
[423500706,1780170643000,-799.9254,8.767e-05,2]
[423500702,1780170643000,-500.0,8.493e-05,2]
[423500707,1780170643000,-247.36540912,8.767e-05,2]
[423500710,1780170643000,-500.0,8.767e-05,2]
[423500698,1780170643000,-550.77,8.493e-05,2]
[423500713,1780170643000,-500.0,8.767e-05,2]
[423500712,1780170643000,-500.0,8.767e-05,2]
[423500714,1780170643000,-500.0,8.767e-05,2]
[423500711,1780170643000,-501.8695967,8.767e-05,2]
[423500717,1780170643000,-500.0,8.767e-05,2]
[423500716,1780170643000,-500.0,8.767e-05,2]
[423500720,1780170643000,-639.88569246,8.767e-05,2]
[423500718,1780170643000,-589.51,8.767e-05,2]
[423500719,1780170643000,-500.0,8.767e-05,2]
[423500722,1780170643000,-500.0,8.767e-05,2]
[423500726,1780170643000,-500.0,8.767e-05,2]
[423500724,1780170643000,-500.0,8.767e-05,2]
[423500725,1780170643000,-623.91,8.767e-05,2]
[423500668,1780170643000,-183.04041654,8.493e-05,2]
[423500715,1780170643000,-500.0,8.767e-05,2]
[423500689,1780170643000,-592.0,8.493e-05,2]
[423500723,1780170643000,-500.0,8.767e-05,2]
[423500693,1780170643000,-1403.39,8.493e-05,2]
[423500691,1780170643000,-340.72,8.493e-05,2]
[423500669,1780170643000,-500.0,8.493e-05,2]
[423500660,1780170643000,-1394.68,8.493e-05,2]
[423500662,1780170643000,-500.0,8.493e-05,2]
[423500663,1780170643000,-870.04,8.493e-05,2]
[423500682,1780170643000,-500.0,8.493e-05,2]
[423500671,1780170643000,-500.0,8.493e-05,2]
[423500670,1780170643000,-890.26,8.493e-05,2]
[423500673,1780170643000,-960.05,8.493e-05,2]
[423500672,1780170643000,-492.2,8.493e-05,2]
[423500681,1780170643000,-3366.17,8.493e-05,2]
[423500674,1780170643000,-721.62,8.493e-05,2]
[423500675,1780170643000,-2246.27,8.493e-05,2]
[423500679,1780170643000,-500.0,8.493e-05,2]
[423500665,1780170643000,-500.0,8.493e-05,2]
[423500676,1780170643000,-261.52119811,8.493e-05,2]
[423500677,1780170643000,-757.46,8.493e-05,2]
[423500692,1780170643000,-1012.94,8.493e-05,2]
[423500688,1780170643000,-501.28827127,8.493e-05,2]
[423500683,1780170643000,-1062.25,8.493e-05,2]
[423500690,1780170643000,-17973.7,8.493e-05,2]
[423500687,1780170643000,-500.0,8.493e-05,2]
[423500686,1780170643000,-500.0,8.493e-05,2]
[423500696,1780170643000,-1016.94,8.493e-05,2]
[423500680,1780170643000,-469.552428,8.493e-05,2]
[423500678,1780170643000,-1094.18,8.493e-05,2]
[423500695,1780170643000,-3190.16,8.493e-05,2]
[423500694,1780170643000,-669.81,8.493e-05,2]
[423500685,1780170643000,-1348.04,8.493e-05,2]
[423500684,1780170643000,-2257.15,8.493e-05,2]
[423500756,1780170644000,-500.0,8.767e-05,2]
[423500759,1780170644000,-500.0,8.767e-05,2]
[423500767,1780170644000,-930.362598,8.767e-05,2]
[423500765,1780170644000,-500.0,8.767e-05,2]
[423500757,1780170644000,-624.57,8.767e-05,2]
[423500763,1780170644000,-500.0,8.767e-05,2]
[423500760,1780170644000,-500.0,8.767e-05,2]
[423500758,1780170644000,-500.0,8.767e-05,2]
[423500762,1780170644000,-1229.33,8.767e-05,2]
[423500764,1780170644000,-500.0,8.767e-05,2]
[423500761,1780170644000,-500.0,8.767e-05,2]
[423500769,1780170644000,-500.0,8.767e-05,2]
[423500768,1780170644000,-500.0,8.767e-05,2]
[423500770,1780170644000,-500.0,8.767e-05,2]
[423500773,1780170644000,-500.0,8.767e-05,2]
[423500779,1780170644000,-500.0,8.767e-05,2]
[423500771,1780170644000,-286.774213,8.767e-05,2]
[423500776,1780170644000,-500.0,8.767e-05,2]
[423500772,1780170644000,-500.0,8.767e-05,2]